{"text_format":"1","workbook":"xlsx","n_sheets":3,"sheets":["RRF","Data","Invoice"],"not_rendered":{"charts":0,"images":11,"macros":1,"external_links":0,"defined_names":13,"comments":2,"pivot_tables":0},"unopened":[],"bounds":{"document_bytes":16777216,"sheet_cells":100000,"rows_first":2000,"rows_last":500,"rows_between":2000,"halvings":0,"cell_chars":16384,"cell_head_chars":4096},"cells_cut":0,"cells_raw":0,"read":"whole","date_system":"1900"}

{"sheet":"RRF","index":0,"n_rows":145,"n_cols":12,"rows_kept":145,"cut":false,"hidden":false,"merged":[[135,3,135,4],[135,5,135,7],[141,3,141,4],[124,5,124,7],[133,1,133,2],[128,1,128,2],[128,3,128,4],[128,5,128,7],[129,1,129,2],[139,5,139,7],[141,5,141,7],[139,1,139,2],[125,5,125,7],[126,1,126,2],[126,3,126,4],[126,5,126,7],[129,3,129,4],[129,5,129,7],[134,1,134,2],[134,3,134,4],[140,3,140,4],[127,1,127,2],[127,3,127,4],[131,1,131,2],[131,3,131,4],[134,5,134,7],[64,2,64,4],[140,5,140,7],[106,2,106,3],[92,2,92,3],[121,3,121,4],[130,3,130,4],[105,2,105,3],[138,0,138,7],[123,3,123,4],[114,0,114,11],[85,2,85,3],[118,1,118,2],[116,3,116,4],[87,4,87,6],[101,2,101,3],[121,1,121,2],[107,4,107,7],[136,1,136,2],[136,3,136,4],[136,5,136,7],[127,5,127,7],[125,1,125,2],[125,3,125,4],[135,1,135,2],[59,1,59,6],[87,7,87,8],[86,7,86,8],[90,2,90,3],[99,2,99,4],[51,7,51,10],[84,7,84,8],[90,4,90,6],[87,2,87,3],[60,1,60,6],[64,8,64,10],[79,0,79,11],[67,2,67,3],[83,2,83,3],[86,2,86,3],[81,2,81,3],[74,2,74,3],[73,2,73,4],[63,2,63,4],[77,8,77,11],[51,3,51,4],[72,2,72,4],[62,6,62,10],[72,8,72,11],[0,2,0,10],[1,3,1,10],[4,0,8,10],[2,5,2,10],[2,3,2,4],[2,1,2,2],[78,8,78,10],[37,8,37,10],[63,8,63,10],[13,6,13,10],[38,6,38,8],[14,6,14,10],[14,1,14,4],[76,2,76,3],[65,2,65,3],[71,0,71,4],[17,1,17,7],[23,1,23,4],[15,6,15,10],[16,6,16,10],[31,0,31,11],[21,0,21,11],[33,1,33,4],[18,0,19,1],[11,6,11,10],[12,6,12,10],[119,1,119,2],[37,3,37,4],[74,6,74,7],[77,6,77,7],[73,8,73,11],[120,3,120,4],[10,1,10,4],[10,6,10,10],[38,3,38,4],[11,1,11,4],[12,1,12,4],[15,1,15,4],[86,4,86,6],[26,1,26,4],[34,6,34,8],[118,5,118,7],[118,3,118,4],[90,7,90,8],[92,7,92,8],[88,2,88,3],[98,2,98,4],[98,5,98,7],[13,1,13,4],[34,1,34,4],[55,7,55,10],[57,0,57,11],[29,1,29,4],[28,1,28,4],[25,1,25,4],[35,6,35,8],[35,1,35,4],[37,6,37,7],[16,1,16,4],[18,5,19,7],[24,1,24,4],[27,1,27,4],[39,6,39,8],[53,3,53,4],[39,3,39,4],[43,3,43,4],[43,7,43,10],[47,7,47,10],[53,7,53,10],[45,7,45,10],[150,1,150,4],[96,5,96,7],[144,0,144,11],[123,1,123,2],[96,2,96,4],[97,2,97,4],[116,1,116,2],[122,5,122,7],[130,5,130,7],[140,1,140,2],[121,5,121,7],[103,4,103,7],[101,4,101,10],[104,2,104,3],[103,2,103,3],[99,5,99,7],[98,8,98,10],[102,2,102,3],[104,4,104,7],[102,4,102,7],[110,2,110,3],[96,8,96,10],[97,8,97,10],[120,5,120,7],[133,3,133,4],[133,5,133,7],[131,5,131,7],[74,8,74,11],[97,5,97,7],[82,2,82,3],[132,3,132,4],[142,1,142,2],[142,3,142,4],[142,5,142,7],[137,1,137,2],[137,3,137,4],[130,1,130,2],[137,5,137,7],[139,3,139,4],[132,5,132,7],[132,1,132,2],[141,1,141,2],[124,1,124,2],[124,3,124,4],[83,4,83,6],[94,2,94,3],[88,7,88,8],[88,4,88,6],[68,8,68,9],[99,8,99,10],[108,2,108,3],[109,2,109,3],[75,6,75,7],[75,8,75,11],[76,6,76,7],[76,8,76,11],[71,7,71,11],[83,7,83,8],[72,6,72,7],[73,6,73,7],[91,7,91,8],[94,4,94,6],[85,4,85,6],[84,4,84,6],[84,2,84,3],[92,4,92,6],[106,4,106,7],[105,4,105,7],[91,2,91,3],[91,4,91,6],[107,2,107,3],[117,0,117,7],[94,7,94,8],[85,7,85,8],[123,5,123,7],[119,5,119,7],[111,2,111,3],[119,3,119,4],[116,5,116,7],[122,1,122,2],[122,3,122,4],[120,1,120,2]]}
[null,null,"Self-Generation Incentive Program"]
[null,null,null,"2011 Reservation Request Form"]
["Reservation Number:",null,null,"(Administrator Use Only)",null,"November 9, 2011 / Revision 1"]
[]
["Instructions: Please confirm you are using the most recent Reservation Request Form by verifying the revision date above, and going to your Program Administrator's website to verify .  Please refer to your SGIP Program Handbook for instructions, and please include all required attachments with your submittal.  Incomplete Reservation Requests will be returned to the sender."]
[]
[]
[]
[]
[null,"1.  Host Customer Information",null,null,null,null,"2.  System Owner (if not Host Customer)"]
["Gov't/Company Name"]
["Contact Name"]
["Mailing Address"]
[]
["Parent Company"]
["Phone"]
["Email"]
[null,"Are you or any affiliated entity taking tax credits for this project?"]
["Host Customer entity type:",null,null,null,null,"System Owner entity type:"]
[]
[]
["3. Applicant (if not Host Customer)"]
[]
["Company Name"]
["Contact Name"]
["Mailing Address"]
[]
["Parent Company"]
["Phone"]
["Email"]
[]
["4. Project Site Information"]
[]
["Site Address"]
["City",null,null,null,null,null,"Maximum Site Electric Load",null,null,null,null,"kW"]
["County",null,null,null,null,null,"Interruptible/Demand Reduction Obligation",null,null,"-",null,"kW"]
[]
["Utility Information","Name","Meter #","Account Number",null,null,"DRO Program Name"]
["Electric",null,null,null,null,null,"Estimated Future Added Demand ",null,null,"+",null,"kW"]
["Gas",null,null,null,null,null,"Net Site Electric Load",null,null,"=",{"$f":"K35-K36+K39","v":0},"kW"]
[]
[null,null,"Existing Generation at Site?"]
[]
[null,null,"If Yes;  Size (kW):",null,null,null,"Type:"]
[]
[null,null,null,null,null,null,"Make:"]
[]
[null,null,null,null,null,null,"Model:"]
[]
[null,null,"Existing Generation at Site Funded by SGIP?"]
[]
[null,null,"If Yes;  Size (kW):",0,null,null,"Type:"]
[]
[null,null,"Previous SGIP Application #:",null,null,null,"Make:"]
[]
[null,null,null,null,null,null,"Model:"]
[]
["5. Proposed Self-Generation System Information"]
[]
["Technology","Internal Combustion Engine CHP",null,null,null,null,null,null,null,"Hybrid?"]
["Fuel Type","Renewable Fuel"]
[]
[null,"New Generating System Information",null,null,null,null,"Wind Systems Only (if applicable)"]
[null,"Manufacturer",null,null,null,null,null,"Inverter Manufacturer"]
[null,"Model Number",null,null,null,null,null,"Inverter Model Number"]
[null,"Unit System Rating (kW AC) ",null,null,"/unit",null,null,"Number of Units"]
[null,"Number of Units",null,null,null,null,null,"Inverter Efficiency",null,"%"]
[null,"Proposed System Rating (AC):",{"$f":"C67*C66","v":0},null,"kW"]
[null,"California Supplier?",true]
[null,"Qualified for the Feed-in Tariff?",true]
[]
["Advanced Energy Storage (AES) System Information",null,null,null,null,null,null,"Directed Biogas Supplier (if applicable)"]
[null,"Manufacturer",null,null,null,null,"Company Name"]
[null,"Model Number",null,null,null,null,"Mailing Address"]
[null,"Unit System Rating (kW AC) ",null,null,"/unit"]
[null,"Number of Units",null,null,null,null,"Contact Name"]
[null,"Proposed System Rating (AC):",{"$f":"C75*C76","v":0},null,"kW",null,"Phone Number"]
[null,"California Supplier?",false,null,null,null,"Email Address"]
[]
["6. Project Incentive Calculation and Cost Information  "]
[]
[null,"Total Eligible Project Cost (TEPC):",null,null,{"$f":"SUM((B60=FuelsTechnologies)*Incentives)","v":0.5}]
[null,"Investment Tax Credit as % of TEPC:"]
[null,"Tiered Incentive Capacity Ranges:","[ 0-1MW ]",null,"[ >1M-2MW ]",null,null,"[ >2M-3MW ]"]
[null,"Existing SGIP Funded Capacity:",{"$f":"IF(D52>=1000,1000,D52)","v":0},null,{"$f":"IF(D52>=1000,IF(D52>=2000,1000,D52-1000),0)","v":0},null,null,{"$f":"IF(D52>=2000,IF(D52>=3000,1000,D52-2000),0)","v":0}]
[null,"Existing & Proposed Capacity:",{"$f":"IF((C68+D52)>=1000,1000,(C68+D52))","v":0},null,{"$f":"IF((C68+D52)>=1000,IF((C68+D52)>=2000,1000,(C68+D52)-1000),0)","v":0},null,null,{"$f":"IF((C68+D52)>=2000,IF((C68+D52)>=3000,1000,(C68+D52)-2000),0)","v":0}]
[null,"Proposed Capacity:",{"$f":"C86-C85","v":0},null,{"$f":"E86-E85","v":0},null,null,{"$f":"H86-H85","v":0}]
[null,"SGIP Incentive Rate:",{"$f":"E82","v":0.5},null,{"$f":"C88*0.5","v":0.25},null,null,{"$f":"C88*0.25","v":0.125}]
[null,"Unadjusted SGIP Incentive:",{"$f":"C87*C88*1000","v":0},null,{"$f":"E87*E88*1000","v":0},null,null,{"$f":"H87*H88*1000","v":0}]
[]
[null,"Advanced Energy Storage Capacity:",{"$f":"IF(C77>=1000,1000,C77)","v":0},null,{"$f":"IF(C77>=1000,IF(C77>=2000,1000,C77-1000),0)","v":0},null,null,{"$f":"IF(C77>=2000,IF(C77>=3000,1000,C77-2000),0)","v":0}]
[null,"SGIP AES Incentive Rate:",2,null,{"$f":"C92*0.5","v":1},null,null,{"$f":"C92*0.25","v":0.5}]
[null,"Unadjusted SGIP AES Incentive:",{"$f":"C91*C92*1000","v":0},null,{"$f":"E91*E92*1000","v":0},null,null,{"$f":"H91*H92*1000","v":0}]
[]
[null,"Total Unadjusted SGIP Incentive",{"$f":"C93+C89","v":0},null,{"$f":"E93+E89","v":0},null,null,{"$f":"H93+H89","v":0}]
[]
[null,"Other Incentives:","Other Incentive Source Name/Description",null,null,"Other Incentive Source Type",null,null,"Other Incentive Amount",null,null,"% Project Cost"]
[null,null,null,null,null,null,null,null,null,null,null,{"$f":"I98/$C$82","v":{"$error":"#DIV/0!"}}]
[null,null,null,null,null,null,null,null,null,null,null,{"$f":"I99/$C$82","v":{"$error":"#DIV/0!"}}]
[null,null,null,null,null,null,"Non-IOU Ratepayer Funded",null,null,null,null,{"$f":"I100/$C$82","v":{"$error":"#DIV/0!"}}]
[]
[null,"Total Unadjusted SGIP Incentive =",{"$f":"SUM(C95:I95)","v":0},null,"Directed Biogas Adder Cost Cap"]
[null,"Total Other Incentives =",{"$f":"SUM(I98:K100)","v":0},null,"Generator System Heat Rate = ",null,null,null,null,"Btu/kWh"]
[null,"SGIP Incentive Adjustment =",{"$f":"-H114","v":0},null,"Natural Gas Cost =",null,null,null,null,"$/MMBtu"]
[null,"California Supplier Adder =",{"$f":"IF(C69=TRUE,SUM(C89:I89)*0.2,0)+IF(C78=TRUE,SUM(C93:I93)*0.2,0)","v":0},null,"Average Directed Biogas Fuel Cost =",null,null,null,null,"$/MMBtu"]
[null,"Renewable Fuel Adder =",{"$f":"IF(AND(B61=Data!C4,OR(B60=Data!B6,B60=Data!B7,B60=Data!B8,B60=Data!B10)),C68*2*1000,0)","v":0},null,"Directed Biogas Contract Term =",null,null,null,10,"years"]
[null,"Adjusted Generator & AES Incentive =",{"$f":"C102+C104+C105","v":0},null,"Estimated Fuel Consumption =",null,null,null,{"$f":"C68*I103*8760*0.8/1000000","v":0},"MMBtu/yr"]
[null,"Total Adjusted SGIP Incentive =",{"$f":"C106+C107","v":0},null,"Directed Biogas Adder Cap =",null,null,null,{"$f":"I107*(I105-I104)*I106","v":0}]
[null,"Total Capped SGIP Incentive =",{"$f":"IF((C82)*(1-C83-0.4)<C107,(C82)*(1-C83-0.4),C107)+IF(AND(I108<C106,B61=Data!C4),I108,C106)","v":0}]
[null,"Total Paid Incentive =",{"$f":"MIN(C109,C108,5000000)","v":0}]
[null,"PBI Rate ($/kWh) =",{"$f":"(C110/2)/(((C68*E114*8760)+(IF(C77>0,0.1,0)*C77*8760))*5)","v":{"$error":"#DIV/0!"}}]
[null,"Up-Front Paid Incentive =",{"$f":"C110/2","v":0}]
[]
[null,null,null,null,{"$f":"SUM((B60=FuelsTechnologies)*Capacity_Factor)","v":0.8},null,{"$f":"MIN(C107:D109)","v":0},{"$f":"SUM((F98=FundingSource)*FundingSourceFact*I98+(F99=FundingSource)*FundingSourceFact*I99+(F100=FundingSource)*FundingSourceFact*I100)","v":0}]
["7. Reservation Request Application Checklist"]
[]
["Required Materials","Wind Turbine and Waste Energy Capture",null,"Conventional CHP",null,"Fuel Cells and AES"]
["Reservation Documents for Three-Step & Two-Step Applications"]
["1. Completed Reservation Request Application and Program Contract w/ Original Signatures"]
["2. Equipment Specifications"]
["3. Proof of Utility Service"]
["4. 12-Month Electric Load Documentation"]
["5. Minimum Operating Efficiency "]
["Waste Heat Utilization Documentation"]
["OR, Minimum Electric Efficiency Calculation"]
["6. Proof of Power Factor Eligibility"]
["7. Proof of NOx Emissions Qualifications "]
["Minimum 60% System Efficiency Calculation"]
["Emissions Credits Calculation\n"]
["8. Proof of Adequate Waste Gas Fuel"]
["9. Proof of Adequate Renewable Fuel or Waste Energy Resource"]
["10. Gas Injection Qualification","Directed biogas only",null,"Directed biogas only",null,"Directed biogas only"]
["11. Forecasted Fuel Consumption"]
["12. Directed Biogas Renewable Fuel Attestation - System Owner","Directed biogas only",null,"Directed biogas only",null,"Directed biogas only"]
["13. Directed Biogas Renewable Fuel Attestation - Fuel Supplier","Directed biogas only",null,"Directed biogas only",null,"Directed biogas only"]
["14. Application Fee"]
["15. Energy Audit"]
["16. Documentation Verifying Non-Profit Entity Status (if applicable)"]
["Additional Reservation Documents for Two-Step Applications"]
["17. Copy of Executed Contract or Agreement for Installation (includes warranty language documentation)"]
["18. Fuel Cleanup Equipment Purchase Order"]
["19. Renewable Fuel Affidavit","Renewable fuel only",null,"Renewable fuel only",null,"Renewable fuel only"]
["20. Renewable Fuel Contract","Directed biogas only",null,"Directed biogas only",null,"Directed biogas only"]
[]
["8. Host Customer & System Owner Agreement"]

{"sheet":"Data","index":1,"n_rows":12,"n_cols":9,"rows_kept":12,"cut":false,"hidden":true,"merged":[]}
["PreviousFuelsTechnologies","FuelsTechnologies","Fuel Type","Levels","Incentives","Capacity Factor","FundingSource","FundingSourceFact","EntityType"]
[]
["Photovoltaics","Wind Turbine","Non-Renewable Fuel",null,1.25,0.25,"IOU Ratepayer Funded",1,"Residential"]
["Renewable Wind Turbine","Waste Heat to Power","Renewable Fuel",null,1.25,0.8,"Non-IOU Ratepayer Funded",0.5,"Commercial"]
["Renewable Fuel Cell","Pressure Reduction Turbine",null,null,1.25,0.8,"Non-Ratepayer Funded",0,"Industrial/Ag"]
["Renewable Fuel Microturbine","Internal Combustion Engine CHP",null,null,0.5,0.8,null,null,"Public Entity"]
["Renewable Fuel IC Engine","Microturbine CHP",null,null,0.5,0.8,null,null,"Other Tax Exempt Entity"]
["Renewable Fuel Small Gas Turbine","Gas Turbine CHP",null,null,0.5,0.8]
["Non-Renewable Fuel Cell CHP","Advanced Energy Storage",null,null,2,0.1]
["Non-Renewable Fuel Microturbine CHP","Fuel Cell CHP or Electric Only",null,null,2.25,0.8]
["Non-Renewable Fuel IC Engine CHP"]
["Non-Renewable Fuel Small Gas Turbine CHP"]

{"sheet":"Invoice","index":2,"n_rows":36,"n_cols":2,"rows_kept":36,"cut":false,"hidden":false,"merged":[[35,1,36,4],[22,1,22,4],[24,1,24,4],[27,1,27,4],[29,1,29,4],[31,1,31,4],[33,1,33,4],[4,1,4,4],[5,1,5,4],[0,0,0,3],[10,1,10,4],[14,1,14,4],[6,1,6,4],[7,1,7,4],[8,1,8,4],[17,1,17,4],[19,1,19,4],[9,1,9,4],[13,1,13,4],[15,1,15,4],[16,1,16,4],[18,1,18,4]]}
["Self-Generation Incentive Program"]
["2011 Application Fee Invoice"]
[]
[null,"Host Customer Information"]
["Gov't/Company Name"]
["Contact Name"]
["Mailing Address"]
[]
["Parent Company"]
["Phone"]
["Email"]
[]
[null,"System Owner (if not Host Customer)"]
["Gov't/Company Name"]
["Contact Name"]
["Mailing Address"]
[]
["Parent Company"]
["Phone"]
["Email"]
[]
[]
["Requested SGIP Incentive",{"$f":"RRF!C110","v":0}]
[]
["Application Fee",{"$f":"ROUND(B23*1%,0)","v":0}]
["(1% of Requested Incentive)"]
[]
["Total Amount Paid",{"$f":"B25","v":0}]
[]
["Payment Terms","Paid in Full with Application"]
[]
["Verified By:"]
[]
["Date Paid"]
[]
["Signature"]